Cogmind - Beta 14 @@@ ROGUE MODE // 2024.12.26 @ 19:21:26 Player: PTS Result: Destroyed by S-10 Pest with Light Assault Rifle Performance ------------- Evolutions (1) 500 Regions Visited (2) 400 Robots Destroyed (18) 90 Value Destroyed (471) 471 Prototype IDs (1) 20 Alien Tech Used (0) 0 Bonus (10) 10 TOTAL SCORE: 1491 Bonus ------- High Alert Combat Kills 10 Cogmind --------- Core Integrity 0/400 Matter 300/300 Energy 100/100 System Corruption 0% Temperature Cool (0) Movement Core (200) Ox3 Location -9/Materials Parts ------- > --- POWER (1) -------- (None) > --- PROPULSION (3) --- (None) > --- UTILITY (2) ------ Medium Storage Unit Structural Scanner > --- WEAPON (3) ------- (None) > --- INVENTORY (10) --- Light Ion Engine Hover Unit Hover Unit Hover Unit Improved Hover Unit Weight Redist. System Terrain Scan Processor Improved Light Cannon Datajack Mining Laser Peak State ------------ > --- POWER ------------ Light Ion Engine > --- PROPULSION ------- Improved Hover Unit Improved Hover Unit Improved Hover Unit > --- UTILITY ---------- Medium Storage Unit Structural Scanner > --- WEAPON ----------- Improved EM Shotgun Small Laser Mining Claw > --- INVENTORY -------- Light Ion Engine Hover Unit Hover Unit Improved Hover Unit Terrain Scan Processor Improved Light Cannon Datajack Mining Laser Mining Claw [Rating: 15] Favorites ----------- Power Light Ion Engine Engine Light Ion Engine Propulsion Improved Hover Unit Leg Aluminum Leg Hover Unit Improved Hover Unit Utility Structural Scanner Device Structural Scanner Storage Medium Storage Unit Weapon Small Laser Energy Gun Small Laser Ballistic Cannon Improved Light Cannon Slashing Weapon Mining Claw Build | -11 -10 -9 ------- Run | Yrd Mat Mat Slots Evolved 2 | . . 2 Power . | . . . Propulsion 1 | . . 1 Utility . | . . . Weapon 1 | . . 1 Parts Attached 20 | 6 7 7 Power 2 | . . 2 Engine 2 | . . 2 Core . | . . . Reactor . | . . . Propulsion 5 | 2 2 1 Treads . | . . . Leg 2 | 2 . . Wheel . | . . . Hover 3 | . 2 1 Flight . | . . . Utility 4 | 2 2 . Device 2 | 1 1 . Storage 2 | 1 1 . Processor . | . . . Hackware . | . . . Protection . | . . . Artifact . | . . . Weapon 9 | 2 3 4 Energy Gun 5 | 2 1 2 Energy Cannon . | . . . Ballistic Gun . | . . . Ballistic Cannon 1 | . . 1 Launcher . | . . . Special Weapon . | . . . Impact Weapon . | . . . Slashing Weapon 3 | . 2 1 Piercing Weapon . | . . . Special Melee Weapon . | . . . Unidentified Prototypes 1 | . . 1 Parts Lost 8 | . . 8 Power 1 | . . 1 Propulsion 3 | . . 3 Utility . | . . . Weapon 4 | . . 4 Highest Loss Streak 7 | . . 7 To Critical Strikes . | . . . Average Slot Usage (%) 87 | . 85 89 Engine 5 | . . 9 Leg 7 | . 18 . Hover 21 | . 9 30 Device 12 | . 14 11 Storage 12 | . 14 11 Energy Gun 17 | . 16 18 Slashing Weapon 9 | . 11 8 Peak Build Rating 15 | 6 8 15 Average Rating 9 | 4 6 13 On Entrance 4 | . 6 8 Naked Turns . | . . . Heaviest Build 21 | 8 14 21 Greatest Support 21 | 20 20 21 Greatest Overweight (x) 3 | . 1 3 Average Overweight (x) . | . . . Largest Inventory Capacity 10 | 8 10 10 Average Capacity 9 | 7 8 10 Most Carried 10 | 2 6 10 Average Carried 6 | . 3 9 Final Capacity 10 | 8 10 10 Final Carried 10 | 2 6 10 Class Distribution -------------------- 100% | Mutant Dominant Class ---------------- Mutant | -10/Materials Mutant | -9/Materials Resources | -11 -10 -9 ----------- Run | Yrd Mat Mat Matter Collected 388 | 186 81 121 Remotely . | . . . Salvage Created 551 | 97 47 407 Parts 38 | 8 3 27 Haulers Intercepted 1 | . . 1 Recyclers Shooed 1 | 1 . . Parts Field Recycled . | . . . Retrieved Matter . | . . . Parts Self-Destructed . | . . . Prevented . | . . . Kills | -11 -10 -9 ------- Run | Yrd Mat Mat Combat Hostiles Destroyed 8 | . . 8 Melee 1 | . . 1 Guns 3 | . . 3 AOE 4 | . . 4 Classes Destroyed 8 | 2 2 4 Worker 3 | . 1 2 Tunneler 2 | 2 . . Hauler 1 | . . 1 Recycler 1 | 1 . . Operator 1 | . . 1 Watcher 2 | . 1 1 Swarmer 1 | . . 1 Grunt 7 | . . 7 Best Kill Streak 4 | 2 1 4 Combat Bots Only 3 | . . 3 Max Kills in Single Turn 3 | 1 1 3 Gunslinging . | . . . Exploded 2 | . . 2 Melee 1 | . . 1 Uniques/NPCs Destroyed . | . . . Combat | -11 -10 -9 -------- Run | Yrd Mat Mat Hostile Shots Fired 122 | . 9 113 Missed 43 | . 4 39 Damage Taken 966 | . 56 910 Core 426 | . 21 405 Absorbed by Shields . | . . . Core Remaining (%) 95 | 100 91 . Volleys Fired 30 | 8 3 19 Largest 2 | 2 1 2 Hottest 85 | 80 40 85 Shots Fired 56 | 16 3 37 Gun 56 | 16 3 37 Cannon . | . . . Launcher . | . . . Special . | . . . Kinetic . | . . . Thermal 38 | 16 3 19 Explosive . | . . . Electromagnetic 18 | . . 18 Robot Hit Streak 7 | 5 1 7 Robot Miss Streak 5 | 5 1 3 Penetration Max . | . . . Secondary Targets . | . . . Shots Hit Robots 42 | 7 4 31 Core Hits 24 | 4 2 18 Critical Kills . | . . . Critical Parts Destroyed . | . . . Critical Strikes . | . . . Melee Attacks 19 | . 6 13 Impact . | . . . Slashing 19 | . 6 13 Piercing . | . . . Sneak Attacks 4 | . 1 3 Combat Hostiles . | . . . Follow-up Attacks . | . . . Damage Inflicted 1199 | 81 83 1035 Guns 437 | 81 10 346 Cannons . | . . . Explosions 389 | . . 389 Melee 372 | . 73 299 Ramming 1 | . . 1 Kinetic . | . . . Thermal 569 | 81 10 478 Explosive . | . . . Electromagnetic 257 | . . 257 Impact . | . . . Slashing 372 | . 73 299 Piercing . | . . . Highest Corruption . | . . . Average Corruption . | . . . Corruption Purged . | . . . Corruption Blocked . | . . . Overload Shots . | . . . Overflow Damage 65 | . 19 46 Projectiles . | . . . Explosions 46 | . . 46 Melee 19 | . 19 . Knockbacks . | . . . Impact . | . . . Kinetic . | . . . Secondary . | . . . Self-Inflicted Damage 195 | . . 195 Shots 4 | . . 4 Rammed 1 | . . 1 Targets Rammed 1 | . . 1 Kicked . | . . . Crushed . | . . . Highest Temperature 231 | 9 . 231 Average Temperature 60 | 3 . 76 Received Heat Transfer 219 | . 30 189 Siege Activations . | . . . Robots Corrupted . | . . . Combat Hostiles . | . . . Parts Fried 2 | . . 2 Impact Corruptions . | . . . Robots Melted . | . . . Combat Hostiles . | . . . Parts Melted . | . . . Heat Transferred 750 | 175 25 550 Parts Sabotaged . | . . . Parts Stolen . | . . . Parts Stripped . | . . . Power Chain Reactions 3 | . . 3 Alert | -11 -10 -9 ------- Run | Yrd Mat Mat Peak Influence 609 | 15 53 609 Initial 22 | . 9 22 Average 193 | 5 38 339 Maximum Alert Level 2 | . . 2 Low Security (%) 62 | 100 100 28 Level 1 11 | . . 21 Level 2 26 | . . 49 Level 3 . | . . . Level 4 . | . . . Level 5 . | . . . High Security . | . . . Max Security . | . . . Squads Dispatched 7 | . 2 5 Investigation 6 | . 2 4 Extermination . | . . . Reinforcement 1 | . . 1 Assault . | . . . Garrison . | . . . Intercept . | . . . Searches Triggered . | . . . Construction Impeded . | . . . Haulers Reinforced . | . . . Active Scanning Responses . | . . . Cargo Convoy Interrupts . | . . . Stealth | -11 -10 -9 --------- Run | Yrd Mat Mat Distress Signals 2 | . 1 1 Communications Jammed . | . . . Distress Signals . | . . . Times Spotted 31 | . 10 21 Peak Tracking Total 10 | . 6 10 Tactical Retreats 2 | . 1 1 Traps | -11 -10 -9 ------- Run | Yrd Mat Mat Traps Triggered 3 | . 2 1 Indirectly . | . . . Trap Hack Attempts . | . . . Triggered . | . . . Disarmed . | . . . Reprogrammed . | . . . Reused . | . . . Traps Extracted . | . . . Installed . | . . . Triggered . | . . . Machines | -11 -10 -9 ---------- Run | Yrd Mat Mat Machines Disabled 3 | . . 3 Max in Single Turn 2 | . . 2 Machines Repaired . | . . . Machines Dismantled . | . . . Machines Sabotaged 2 | . . 2 Overloaded Fab Kills . | . . . Hacking | -11 -10 -9 --------- Run | Yrd Mat Mat Machines Accessed 3 | . . 3 Terminals 3 | . . 3 Fabricators . | . . . Repair Stations . | . . . Recycling Units . | . . . Scanalyzers . | . . . Garrison Access . | . . . Total Hacks 10 | . . 10 Successful 5 | . . 5 Failed 5 | . . 5 Catastrophic 1 | . . 1 Database Lockouts . | . . . Manual 4 | . . 4 Terminals 10 | . . 10 Fabricators . | . . . Repair Stations . | . . . Recycling Units . | . . . Scanalyzers . | . . . Garrison Access . | . . . Terminal Hacks 2 | . . 2 Record 1 | . . 1 Alert Level 1 | . . 1 Fabricator Hacks . | . . . Repair Station Hacks . | . . . Recycling Unit Hacks . | . . . Scanalyzer . | . . . Garrison Access Hacks . | . . . Unauthorized Hacks 3 | . . 3 Terminals 3 | . . 3 Sabotage 3 | . . 3 Fabricators . | . . . Repair Stations . | . . . Recycling Units . | . . . Scanalyzers . | . . . Garrison Access . | . . . Data Cores Recovered . | . . . Used . | . . . Hacking Detections 1 | . . 1 Full Trace Events . | . . . Feedback Events . | . . . Feedback Blocked . | . . . Robot Schematics Acquired . | . . . Robots Built . | . . . Authchips . | . . . Time . | . . . Total Robot Build Rating . | . . . Part Schematics Acquired . | . . . Parts Built . | . . . Authchips . | . . . Time . | . . . Total Part Build Rating . | . . . Parts Repaired . | . . . Time . | . . . Parts Recycled . | . . . Recycled Matter . | . . . Retrieved Matter . | . . . Retrieved Components . | . . . Parts Scanalyzed . | . . . Part Schematics Acquired . | . . . Parts Damaged . | . . . Bothacking | -11 -10 -9 ------------ Run | Yrd Mat Mat Used RIF Installer . | . . . Robots Hacked . | . . . Non-combat . | . . . Combat . | . . . Robot Hacks Applied . | . . . Relay Couplers Released . | . . . Fabnet Peak Effective % . | . . . Robots Rewired . | . . . Allies Hacked . | . . . Hacks Repelled . | . . . Allies | -11 -10 -9 -------- Run | Yrd Mat Mat Total Allies . | . . . Largest Group . | . . . Highest-Rated Group . | . . . Highest-Rated Ally . | . . . Total Orders . | . . . Ally Attacks . | . . . Total Damage . | . . . Kills . | . . . Allies Corrupted . | . . . Allies Melted . | . . . Intel | -11 -10 -9 ------- Run | Yrd Mat Mat Robot Analysis Total . | . . . Derelict Logs Recovered . | . . . Drone Launches . | . . . Drone Recoveries . | . . . Exploration | -11 -10 -9 ------------- Run | Yrd Mat Mat Turns Passed 838 | 96 299 443 Spaces Moved 631 | 51 151 429 Core 15 | 3 . 12 Treads . | . . . Legs 151 | 48 103 . Wheels . | . . . Hover 465 | . 48 417 Flight . | . . . Fastest Speed 50 | 50 56 52 Average Speed 71 | 115 100 56 Slowest Speed 200 | 120 130 200 Overloaded Moves . | . . . Propulsion Burnouts . | . . . Robots Hopped . | . . . Cave-ins Triggered . | . . . Exploration Rate (%) 22 | 5 23 38 Regions Visited 2 Branch Regions . Pre-discovered Areas . | . . . Known Exits Taken . | . . . Unknown Exits Taken 2 | 1 1 . Scrap Searched . | . . . Spaces Dug 2 | . 2 . Terrain Destroyed 43 | . 2 41 Melee 2 | . 2 . Projectile . | . . . AOE 41 | . . 41 Terrain Rammed . | . . . Walls Destroyed . | . . . Machines Disabled . | . . . Actions | -11 -10 -9 --------- Run | Yrd Mat Mat Total 920 | 72 282 566 Wait 186 | . 103 83 Move 629 | 50 150 429 Hop . | . . . Pick Up 27 | 8 8 11 Fast Attach . | . . . Attach 10 | 6 . 4 Detach . | . . . Swap 10 | . 7 3 Drop 8 | . 5 3 Fire 30 | 8 3 19 Melee 19 | . 6 13 Ram 1 | . . 1 Kick . | . . . Crush . | . . . Escape Stasis . | . . . Rewire . | . . . Trap . | . . . Miscellaneous . | . . . Route ------- -11/Scrapyard -10/Materials -9/Materials (discovered 2 exits: [*Mat] / [*Min]) History --------- Turn | Location | Event 2 | -11/Scrapyard | Discovered new exit (range 16) 97 | -11/Scrapyard | Entered Materials 263 | -10/Materials | Discovered new exit (range 16) 316 | -10/Materials | Build established: Mutant 396 | -10/Materials | Entered another Materials area 396 | -9/Materials | Evolved 2 slots: Propulsion x1, Weapon x1 502 | -9/Materials | Discovered new exit (range 16) 746 | -9/Materials | Discovered new exit (range 13) 811 | -9/Materials | Core integrity fell below 50% 823 | -9/Materials | Core integrity fell below 20% 839 | -9/Materials | Destroyed by S-10 Pest with Light Assault Rifle Last Messages --------------- U-05 Engineer lays Concrete. Acquired 49 matter. U-05 Engineer lays Concrete. EXIT=FOUND U-05 Engineer lays Concrete. K-01 Serf cleans the Atomic Centrifuge. W-16 Scout sends out distress signal. C-30 ARC bursts open, deploying its payload. S-10 Pest unfolds itself. S-10 Pest destroyed. K-01 Serf collects debris. Imp. Hover Unit destroyed. Imp. EM Shotgun destroyed. Lgt. Ion Engine destroyed. Imp. Hover Unit destroyed. G-34 Mercenary destroyed. Critical hit (Burn: +37). Mining Claw destroyed. Sml. Laser destroyed. Slammed into S-10 Pest. Map ----- +----------------------------------------------------+ | +?????????????????## #####+### | | # ????????????????## # ## | | + ????????????????## # ## | | # ??????############ # ! ## | | ##??????############ # ## | | ??????## # ###+##### | | ???????## """ """ # ### ##### | | ???????## """ """ # ### ##??? | | ???????## """ """ + ### ##??? | | ??????## # ### ##??? | | ??????## # ### ##??? | | ?????## # ### ##??? | | ?????## | + ##??? | | ????#######+####+##### ##??? | | ?## ######### #%! ### ##??? | | ?## ########## #! /// ##? ????? | | ?## # ## # //! # ? ? ##? | | ?## +% ## #% //! # ? ? ##? | | ?## # %/[ / # ?